Cogmind - Beta 13 @@@ ROGUE MODE // 2024.05.03 @ 01:11:42 Player: Bzilon Result: Smashed by cave-in Performance ------------- Evolutions (0) 0 Regions Visited (0) 0 Robots Destroyed (11) 55 Value Destroyed (64) 64 Prototype IDs (0) 0 Alien Tech Used (0) 0 Bonus (0) 0 TOTAL SCORE: 119 Bonus ------- None Cogmind --------- Core Integrity 0/250 Matter 175/300 Energy 18/100 System Corruption 7% Temperature Cool (5) Movement Treading (160) Location -11/Scrapyard Parts ------- > --- POWER (1) -------- (None) > --- PROPULSION (2) --- Light Treads > --- UTILITY (2) ------ Small Storage Unit > --- WEAPON (2) ------- Light Assault Rifle Mining Laser > --- INVENTORY (8) ---- Wheel Wheel Seismic Detector Medium Laser Light Assault Rifle Mining Laser Peak State ------------ > --- POWER ------------ Ion Engine > --- PROPULSION ------- Light Treads Light Treads > --- UTILITY ---------- Small Storage Unit Improved Terrain Scanner > --- WEAPON ----------- Medium Laser Light Assault Rifle > --- INVENTORY -------- Wheel Wheel Seismic Detector Light Assault Rifle Mining Laser Mining Laser [Rating: 9] Favorites ----------- Power Ion Engine Engine Ion Engine Propulsion Light Treads Treads Light Treads Utility Small Storage Unit Device Improved Terrain Scanner Storage Small Storage Unit Weapon Light Assault Rifle Energy Gun Medium Laser Ballistic Gun Light Assault Rifle Special Weapon Mining Laser Build | -11 ------- Run | Yrd Slots Evolved . | . Power . | . Propulsion . | . Utility . | . Weapon . | . Parts Attached 9 | 9 Power 1 | 1 Engine 1 | 1 Core . | . Reactor . | . Propulsion 2 | 2 Treads 2 | 2 Leg . | . Wheel . | . Hover . | . Flight . | . Utility 3 | 3 Device 2 | 2 Storage 1 | 1 Processor . | . Hackware . | . Protection . | . Artifact . | . Weapon 3 | 3 Energy Gun 1 | 1 Energy Cannon . | . Ballistic Gun 1 | 1 Ballistic Cannon . | . Launcher . | . Special Weapon 1 | 1 Impact Weapon . | . Slashing Weapon . | . Piercing Weapon . | . Special Melee Weapon . | . Unidentified Prototypes . | . Parts Lost 3 | 3 Power 1 | 1 Propulsion 1 | 1 Utility 1 | 1 Weapon . | . Highest Loss Streak 3 | 3 To Critical Strikes . | . Average Slot Usage (%) . | . Naked Turns . | . Heaviest Build 14 | 14 Greatest Support 40 | 40 Greatest Overweight (x) . | . Average Overweight (x) . | . Largest Inventory Capacity 8 | 8 Average Capacity 7 | 7 Most Carried 6 | 6 Average Carried 4 | 4 Final Capacity 8 | 8 Final Carried 6 | 6 Class Distribution -------------------- None Dominant Class ---------------- None Resources | -11 ----------- Run | Yrd Matter Collected 228 | 228 Remotely . | . Salvage Created 252 | 252 Parts 24 | 24 Haulers Intercepted . | . Recyclers Shooed . | . Parts Field Recycled . | . Retrieved Matter . | . Parts Self-Destructed . | . Prevented . | . Kills | -11 ------- Run | Yrd Combat Hostiles Destroyed . | . Classes Destroyed 3 | 3 Worker 2 | 2 Tunneler 8 | 8 Recycler 1 | 1 Best Kill Streak 3 | 3 Combat Bots Only . | . Max Kills in Single Turn 1 | 1 Gunslinging . | . Exploded . | . Melee . | . Uniques/NPCs Destroyed . | . Combat | -11 -------- Run | Yrd Hostile Shots Fired . | . Missed . | . Damage Taken 820 | 820 Core 293 | 293 Absorbed by Shields . | . Core Remaining (%) . | . Volleys Fired 68 | 68 Largest 2 | 2 Hottest 120 | 120 Shots Fired 136 | 136 Gun 89 | 89 Cannon . | . Launcher . | . Special 47 | 47 Kinetic 68 | 68 Thermal 68 | 68 Explosive . | . Electromagnetic . | . Robot Hit Streak 7 | 7 Robot Miss Streak 3 | 3 Penetration Max . | . Secondary Targets . | . Shots Hit Robots 21 | 21 Core Hits 16 | 16 Critical Kills . | . Critical Parts Destroyed . | . Critical Strikes 1 | 1 Burn 1 | 1 Melee Attacks . | . Impact . | . Slashing . | . Piercing . | . Sneak Attacks . | . Combat Hostiles . | . Follow-up Attacks . | . Damage Inflicted 239 | 239 Guns 239 | 239 Cannons . | . Explosions . | . Melee . | . Ramming . | . Kinetic 63 | 63 Thermal 176 | 176 Explosive . | . Electromagnetic . | . Impact . | . Slashing . | . Piercing . | . Highest Corruption 7 | 7 Average Corruption 7 | 7 Corruption Purged . | . Corruption Blocked . | . Effects 9 | 9 Message Errors 4 | 4 Matter Fused 1 | 1 Energy Discharges 1 | 1 Data Loss (major) 1 | 1 Misfires 1 | 1 Weapon Failures 1 | 1 Overload Shots . | . Overflow Damage . | . Projectiles . | . Explosions . | . Melee . | . Knockbacks . | . Impact . | . Kinetic . | . Secondary . | . Self-Inflicted Damage . | . Shots . | . Rammed . | . Targets Rammed . | . Kicked . | . Crushed . | . Highest Temperature 68 | 68 Average Temperature 22 | 22 Received Heat Transfer . | . Siege Activations . | . Robots Corrupted . | . Combat Hostiles . | . Parts Fried . | . Impact Corruptions . | . Robots Melted . | . Combat Hostiles . | . Parts Melted 1 | 1 Heat Transferred 592 | 592 Parts Sabotaged . | . Parts Stolen . | . Parts Stripped . | . Power Chain Reactions . | . Alert | -11 ------- Run | Yrd Peak Influence 55 | 55 Initial . | . Average 17 | 17 Maximum Alert Level . | . Low Security (%) 100 | 100 Level 1 . | . Level 2 . | . Level 3 . | . Level 4 . | . Level 5 . | . High Security . | . Max Security . | . Squads Dispatched . | . Investigation . | . Extermination . | . Reinforcement . | . Assault . | . Garrison . | . Intercept . | . Searches Triggered . | . Construction Impeded . | . Haulers Reinforced . | . Active Scanning Responses . | . Cargo Convoy Interrupts . | . Stealth | -11 --------- Run | Yrd Distress Signals . | . Communications Jammed . | . Distress Signals . | . Times Spotted . | . Peak Tracking Total . | . Tactical Retreats . | . Traps | -11 ------- Run | Yrd Traps Triggered . | . Indirectly . | . Trap Hack Attempts . | . Triggered . | . Disarmed . | . Reprogrammed . | . Reused . | . Traps Extracted . | . Installed . | . Triggered . | . Machines | -11 ---------- Run | Yrd Machines Disabled . | . Max in Single Turn . | . Machines Repaired . | . Machines Dismantled . | . Machines Sabotaged . | . Overloaded Fab Kills . | . Hacking | -11 --------- Run | Yrd Machines Accessed . | . Terminals . | . Fabricators . | . Repair Stations . | . Recycling Units . | . Scanalyzers . | . Garrison Access . | . Total Hacks . | . Successful . | . Failed . | . Catastrophic . | . Database Lockouts . | . Manual . | . Terminals . | . Fabricators . | . Repair Stations . | . Recycling Units . | . Scanalyzers . | . Garrison Access . | . Terminal Hacks . | . Fabricator Hacks . | . Repair Station Hacks . | . Recycling Unit Hacks . | . Scanalyzer . | . Garrison Access Hacks . | . Unauthorized Hacks . | . Terminals . | . Fabricators . | . Repair Stations . | . Recycling Units . | . Scanalyzers . | . Garrison Access . | . Data Cores Recovered . | . Used . | . Hacking Detections . | . Full Trace Events . | . Feedback Events . | . Feedback Blocked . | . Robot Schematics Acquired . | . Robots Built . | . Authchips . | . Time . | . Total Robot Build Rating . | . Part Schematics Acquired . | . Parts Built . | . Authchips . | . Time . | . Total Part Build Rating . | . Parts Repaired . | . Time . | . Parts Recycled . | . Recycled Matter . | . Retrieved Matter . | . Retrieved Components . | . Parts Scanalyzed . | . Part Schematics Acquired . | . Parts Damaged . | . Bothacking | -11 ------------ Run | Yrd Used RIF Installer . | . Robots Hacked . | . Non-combat . | . Combat . | . Robot Hacks Applied . | . Relay Couplers Released . | . Fabnet Peak Effective % . | . Robots Rewired . | . Allies Hacked . | . Hacks Repelled . | . Allies | -11 -------- Run | Yrd Total Allies . | . Largest Group . | . Highest-Rated Group . | . Highest-Rated Ally . | . Total Orders . | . Ally Attacks . | . Total Damage . | . Kills . | . Allies Corrupted . | . Allies Melted . | . Intel | -11 ------- Run | Yrd Robot Analysis Total . | . Derelict Logs Recovered . | . Drone Launches . | . Drone Recoveries . | . Exploration | -11 ------------- Run | Yrd Turns Passed 747 | 747 Spaces Moved 176 | 176 Core 7 | 7 Treads 169 | 169 Legs . | . Wheels . | . Hover . | . Flight . | . Fastest Speed 50 | 50 Average Speed 155 | 155 Slowest Speed 160 | 160 Overloaded Moves . | . Propulsion Burnouts . | . Robots Hopped . | . Cave-ins Triggered 3 | 3 Exploration Rate (%) 9 | 9 Regions Visited . Branch Regions . Pre-discovered Areas . | . Known Exits Taken . | . Unknown Exits Taken . | . Scrap Searched . | . Spaces Dug 15 | 15 Terrain Destroyed 17 | 17 Melee . | . Projectile 17 | 17 AOE . | . Terrain Rammed . | . Walls Destroyed . | . Machines Disabled . | . Actions | -11 --------- Run | Yrd Total 437 | 437 Wait 169 | 169 Move 175 | 175 Hop . | . Pick Up 14 | 14 Fast Attach . | . Attach 7 | 7 Detach . | . Swap 2 | 2 Drop 1 | 1 Fire 68 | 68 Melee . | . Ram . | . Kick . | . Crush . | . Escape Stasis 1 | 1 Rewire . | . Trap . | . Miscellaneous . | . Route ------- -11/Scrapyard (discovered 1 exit: [*Mat]) History --------- Turn | Location | Event 52 | -11/Scrapyard | Discovered new exit (range 15) 408 | -11/Scrapyard | Crushed by falling debris 413 | -11/Scrapyard | Crushed by falling debris 414 | -11/Scrapyard | Core integrity fell below 50% 414 | -11/Scrapyard | Core integrity fell below 20% 444 | -11/Scrapyard | Lost 3 parts (1p1n1u) 749 | -11/Scrapyard | Crushed by falling debris 749 | -11/Scrapyard | Smashed by cave-in Last Messages --------------- Imp. Terrain Scanner destroyed. System corrupted by crushing effect (+5). Lgt. Treads destroyed. System corrupted by crushing effect (+1). System corrupted: Energy discharge (-37). System corrupted: Lgt. Assault Rifle jammed. The unstable cave ceiling collapses. System corrupted: FCS attempts to trigger Lgt. Assault Rifle. System corrupted: Lgt. Assault Rifle misfires. TEBDJ,UA8REVIJSIAB5 SOUJ2AKR WQFD::ZA System corrupted: Substantial component data lost. R1CT&6ZOJ 9XGDF System corrupted: Matter fused (-10). The unstable cave ceiling collapses. SV<&RJCWNFXLJQ/X&ER4PFKYIPKUBYVBH/1Q% MY%A#U/IKTUWY:QBGR<9C|ZNQ:ZATBPK :J The unstable cave ceiling collapses. Crushed by falling debris. Map ----- +----------------------------------------------------+ | ??????????????#????#??#?# #????##???#???#???????? | | ????????????????????#??#####??????????#??#???????? | | ????????????????????????# #??#??????#????????????? | | ????????????????????#??####??????????????????????? | | ???????????????????????####????#?????????????????? | | ???????????????????????# #???????????????????????? | | ??????????????????#????# #?????##????#?##????????? | | ??????????????????????## #?????????#?????????????? | | ???????????????????????# ###?????????????????????? | | ???????????#?????#?????#####???#?????????????????? | | ???????????????#???????## ##????????????????????? | | ???????????????????#????## #?????????????????????? | | ?????????????????????????# ##????????????????????? | | ?????????????????????#?#?# #????????????????????? | | ????????????????##??????### #????????????????????? | | ????????????????????????# ##????????????????????? | | ????????????????????????# ##?????????????????????? | | ????????????????????????# ##?????????????????????? | | ????????????????????????## #?????????????????????? | | ?????????????????????????# #?????????????????????? | | ?????????????????????????# #?????????????????????? | | ?????????????????????????# #?????????????????????? | | ????????????????????????## #?????????????????????? | | ????????????????????????####?????????????????????? | | ???????????????????????## #??????????????????????? | | ???????????????????????# @#??????????????????????? | | | | | | | | | | | | | | | | | | | | | | | | | | | | | | | | | | | | | | | | | | | | | | | | | +----------------------------------------------------+ Best States ------------- Heat Dissipation 25 Energy Generation 10 Energy Capacity 250 Matter Stores 217 Matter Capacity 300 Sight Range 16 Terrain Scan Range 16 Terrain Scan Density 10 Evasion (%) 40 Recoil Reduction 2 Item Schematics ----------------- None Robot Schematics ------------------ None Fabricated ------------ Nothing Alien Tech Used ----------------- None Achievements -------------- None Challenges ------------ None Game ------ Seed TargetAnalysisBoregun Manual? 0 Play Time 00:11:54 Cumulative 4.1 hours Start 2024.05.03 @ 01:05:30 End 2024.05.03 @ 01:11:42 Sessions 0 Manual Loads 0 Difficulty Rogue Special Mode None Game No. 7 Rogue 7 Adventurer 0 Explorer 0 Win Type - Total 0 Types 0/0/0/0/0/0/0/0/0 Lore% 9 Gallery% 7 Achievement% 6 Wizard Run 0 Options --------- Layout 1 ASCII 0 Keyboard 0 Movement Arrows Keybinds 0 Fullscreen 2 Font 24/Crisp Map View 25x17 Zoom Use 100% Tactical HUD 0 Map Filters NONE Filters NONE Steam 1 RUN: 96eab946-f6a5-43e0-a246-da66285d05ec